[Event "Chhattisgarh Masters GM 2022"]
[Site "Chhattisgarh"]
[Date "2022.09.21"]
[Round "3.3"]
[White "Batchuluun, Tsegmed"]
[Black "Mrudul Dehankar"]
[Result "1-0"]
[ECO "E11"]
[WhiteElo "2478"]
[BlackElo "2256"]
[Annotator "TA"]
[PlyCount "125"]
[EventDate "2022.09.19"]
[EventCountry "IND"]
[SourceTitle "playchess.com"]
[Source "ChessBase"]
[SourceQuality "1"]
[TimeControl "5400+30"]

{[%evp 10,125,19,19,23,10,25,0,1,0,11,9,17,25,36,0,0,0,9,13,9,14,10,0,0,-21,0,-16,-10,-10,0,0,1,0,10,10,150,15,21,18,30,7,6,0,83,83,95,84,95,81,89,69,70,56,337,158,198,198,189,153,158,156,159,148,155,141,155,160,145,140,145,147,206,203,200,206,274,245,273,266,385,396,521,508,508,492,462,385,883,732,910,782,887,744,887,849,1758,1716,1758,2278,2420,2776,3162,2183,29965,29969,29968,29970,29970,29964,29966,29969,29968,29969,29956,29953,4730,4714]} 1. d4 {[%emt 0:00:03]} Nf6 {[%emt 0:00:14]} 2. c4 {[%emt 0:00:06]} e6 {[%emt 0:00:06]} 3. Nf3 {[%emt 0:00:09]} Bb4+ {[%emt 0:00:08]} 4. Bd2 {[%emt 0:00:12]} Qe7 {[%emt 0:00:20]} 5. g3 {[%emt 0:01:26]} Bxd2+ {[%emt 0:03:12]} 6. Qxd2 {[%emt 0:01:01]} Nc6 {[%emt 0:00:35] E11: Bogo-Indian.} 7. Nc3 {[%emt 0:03:53]} d5 {[%emt 0:01:51]} 8. Bg2 {[%emt 0:10:59]} dxc4 {[%emt 0:05:45] The position is equal.} 9. Ne5 {[%emt 0:10:10]} Nxe5 {[%emt 0:02:43]} 10. dxe5 {[%emt 0:00:05]} Nd7 {[%emt 0:00:06][%cal Bf6d7,Bd7b6,Bb6a4,Ba4c3][%mdl 32]} 11. Qd4 {[%emt 0:07:46]} O-O {[%emt 0:12:21]} 12. f4 {[%emt 0:01:29]} Nb6 {[%emt 0:07:55]} 13. Rd1 {[%emt 0:04:40]} Bd7 {[%emt 0:15:57]} 14. Bxb7 {[%emt 0:15:59] [#]} Rad8 $146 {[%emt 0:02:59] ...Ba4 is the strong threat.} ({Predecessor:} 14... Rab8 15. Bf3 Rfd8 16. Qe3 Qb4 17. Rd2 Be8 18. Kf2 Rxd2 19. Qxd2 Na4 20. Rc1 Qxb2 21. Qxb2 Nxb2 {½-½ (48) Spalir,J (2335)-Rashkovsky,N (2482) Bled 2018}) 15. Qe3 {[%emt 0:06:04]} Qb4 {[%emt 0:21:25]} 16. Bf3 {[%emt 0:06:40]} Qxb2 {[%emt 0:07:09]} 17. O-O {[%emt 0:01:19]} Na4 {[%emt 0:09:51]} 18. Rc1 {[%emt 0:17:28]} Nxc3 {[%emt 0:05:58]} 19. Qxc3 {[%emt 0:00:45]} Qxc3 {[%emt 0:00:49]} ({But not} 19... Qxa2 20. Qxc4 Qxc4 21. Rxc4 $14) 20. Rxc3 {[%emt 0:00:04]} Bb5 {[%emt 0:00:10]} 21. Rb1 {[%emt 0:00:26]} Rb8 {[%emt 0:00:46]} 22. Ra3 {[%emt 0:04:16]} c6 {[%emt 0:00:36]} (22... a6 $11) 23. Rxa7 {[%emt 0:00:28] White has more active pieces.} (23. Ra5 $16) 23... c3 $1 $11 {[%emt 0:00:29] Strongly threatening ...c2.} 24. Rc1 $36 {[%emt 0:02:33][%mdl 2048] Black is under pressure.} Ra8 {[%emt 0:00:33]} 25. Rxa8 {[%emt 0:00:08]} Rxa8 {[%emt 0:00:01]} 26. Rxc3 {[%emt 0:00:28][%mdl 4096] Endgame KRB-KRB} Kf8 {[%emt 0:00:53]} (26... Rxa2 $11 {remains equal.} 27. Bxc6 Bxe2) 27. a3 $16 {[%emt 0:00:40]} ({Much weaker is} 27. Bxc6 $6 Rc8 $11) 27... Ke7 {[%emt 0:00:30]} 28. Kf2 {[%emt 0:00:04]} Kd7 {[%emt 0:00:31]} 29. Ke3 {[%emt 0:00:58]} Kc7 {[%emt 0:00:29]} 30. Be4 {[%emt 0:02:14]} g6 {[%emt 0:00:31]} 31. g4 {[%emt 0:00:22]} Rd8 $2 {[%emt 0:00:31][%mdl 8192] [#] Loses the game.} ({Better is} 31... h6 $14) 32. Bc2 {[%emt 0:00:37]} (32. a4 $1 $18 {[%cal Ra4b5] is the precise move to win.} Bxa4 33. Ra3) 32... Kb6 {[%emt 0:00:30]} 33. a4 {[%emt 0:01:49]} Ba6 {[%emt 0:00:12]} 34. Be4 {[%emt 0:00:21]} c5 {[%emt 0:00:46]} 35. Bd3 {[%emt 0:01:24] Against c4} Bb7 {[%emt 0:00:31]} 36. Rb3+ {[%emt 0:00:21]} Ka7 {[%emt 0:00:33]} 37. Rb5 {[%emt 0:00:25]} Rc8 {[%emt 0:00:25]} 38. Bc4 {[%emt 0:00:37]} Bc6 {[%emt 0:00:29]} 39. Rb2 {[%emt 0:00:49]} ({Worse is} 39. Rxc5 Kb6 40. Rxc6+ Kxc6 $11) 39... Rd8 {[%emt 0:00:24] [#]} 40. Bb5 $1 {[%emt 0:00:17]} Bb7 {[%emt 0:00:39]} (40... Kb6 $16 41. a5+ Kc7) 41. Rd2 $18 {[%emt 0:00:00]} Bd5 {[%emt 0:00:00]} 42. Bc4 {[%emt 0:00:00]} Kb6 {[%emt 0:00:00]} 43. Bxd5 {[%emt 0:00:00]} exd5 {[%emt 0:00:00] KR-KR} 44. Rb2+ {[%emt 0:00:00]} Kc6 {[%emt 0:00:00]} (44... Ka6 $142 45. g5 Rh8) 45. a5 {[%emt 0:00:00][%cal Ba4a5,Ba5a6,Ba6a7][%mdl 32]} d4+ {[%emt 0:00:00]} 46. Ke4 {[%emt 0:00:00]} c4 {[%emt 0:00:00]} 47. a6 {[%emt 0:00:00]} c3 {[%emt 0:00:00]} 48. Ra2 {[%emt 0:00:00]} Kc5 $2 {[%emt 0:00:00]} (48... Kb6 49. a7 Kb7) 49. a7 {[%emt 0:00:00]} Ra8 {[%emt 0:00:00]} 50. Kd3 {[%emt 0:00:04]} Kb4 {[%emt 0:00:00]} 51. Kc2 {[%emt 0:01:32]} Kc4 {[%emt 0:00:00]} 52. f5 {[%emt 0:00:32] aiming for e6.} gxf5 {[%emt 0:02:01]} 53. gxf5 {[%emt 0:00:03] And now e6 would win.} Kd5 {[%emt 0:00:54] Against e6} 54. Ra5+ {[%emt 0:00:07]} Kc6 {[%emt 0:01:13]} 55. e3 {[%emt 0:03:38]} Kb6 {[%emt 0:01:37]} 56. Ra2 {[%emt 0:00:05]} dxe3 {[%emt 0:01:29]} 57. Kxc3 {[%emt 0:00:04]} e2 {[%emt 0:00:37]} 58. Kd2 {[%emt 0:00:46]} e1=Q+ {[%emt 0:00:44]} 59. Kxe1 {[%emt 0:00:05]} Kc5 {[%emt 0:00:06]} 60. Kf2 {[%emt 0:00:49]} Kd5 {[%emt 0:00:12]} 61. Ra5+ {[%emt 0:00:13]} Kc6 {[%emt 0:00:18]} 62. Kf3 {[%emt 0:00:11]} Kb6 {[%emt 0:00:15]} 63. Ra2 {[%emt 0:00:07] Weighted Error Value: White=0.15 (very precise) /Black=0.40} 1-0

[Event "Chhattisgarh Masters GM 2022"]
[Site "Chhattisgarh"]
[Date "2022.09.21"]
[Round "3.3"]
[White "Saptarshi, Roy"]
[Black "Krasenkow, Michal"]
[Result "0-1"]
[ECO "B15"]
[WhiteElo "2388"]
[BlackElo "2545"]
[Annotator "TA"]
[PlyCount "112"]
[EventDate "2022.09.19"]
[EventCountry "IND"]
[SourceTitle "playchess.com"]
[Source "ChessBase"]
[SourceQuality "1"]
[TimeControl "5400+30"]

{[%evp 11,112,22,21,-11,-11,-10,4,-12,-12,-11,-16,-26,-20,-33,-13,0,0,0,0,0,15,16,34,29,51,58,60,29,54,0,0,0,0,-39,0,-31,0,-133,-122,-134,-92,-136,-128,-118,-114,-114,-144,-160,-102,-135,-129,-189,-190,-266,-260,-240,-175,-244,-262,-240,-237,-281,-262,-275,-272,-298,-243,-289,-293,-315,-306,-275,-234,-889,-882,-888,-886,-857,-867,-879,-858,-859,-820,-786,-714,-1208,-752,-1955,-1689,-1620,-1375,-1228,-1680,-1144,-904,-1670,-1567,-1907,-1898,-1490,-1433,-1125,-1008]} 1. e4 {[%emt 0:00:13]} g6 {[%emt 0:00:09]} 2. d4 {[%emt 0:00:42]} Bg7 {[%emt 0:00:06]} 3. Nc3 {[%emt 0:00:15]} c6 {[%emt 0:00:06]} 4. Be3 {[%emt 0:01:03]} d5 {[%emt 0:00:10]} 5. Qd2 {[%emt 0:02:00]} dxe4 {[%emt 0:00:26]} 6. Nxe4 {[%emt 0:00:09]} Nd7 {[%emt 0:00:41]} 7. Ne2 {[%emt 0:03:57] B15: Caro-Kann: 3 Nc3: 3...g6 and 3...dxe4 4 Nxe4 Nf6 5 Nxf6+ exf6.} Ngf6 {[%emt 0:00:40]} 8. N2c3 {[%emt 0:01:02]} Qa5 {[%emt 0:02:15]} 9. f3 {[%emt 0:03:28] [#] The position is equal.} O-O $146 {[%emt 0:01:04]} ({Predecessor:} 9... Nxe4 10. fxe4 Nb6 11. O-O-O Be6 12. a3 O-O-O 13. Qf2 Bc4 14. Bd3 Rhf8 15. Ne2 Bxd3 16. Rxd3 {1-0 (46) Frisk,E (2184)-Boricsev,O (2388) Bugibba 2011}) 10. Bc4 {[%emt 0:03:17]} Nxe4 {[%emt 0:06:06]} 11. fxe4 {[%emt 0:02:01]} c5 {[%emt 0:00:12]} 12. d5 {[%emt 0:13:23]} Ne5 {[%emt 0:01:08]} (12... Nb6 $5 {[%cal Rb6c4]} 13. Be2 Bg4 $15) 13. Be2 {[%emt 0:00:23]} Bg4 {[%emt 0:03:34]} 14. O-O {[%emt 0:01:50]} Rab8 {[%emt 0:04:33]} 15. a3 {[%emt 0:01:20]} Rfc8 {[%emt 0:00:54]} 16. Kh1 {[%emt 0:09:44]} Bd7 {[%emt 0:05:48]} 17. Bg5 {[%emt 0:05:07]} Re8 {[%emt 0:07:26]} 18. d6 {[%emt 0:05:45] Strongly threatening b4.} e6 {[%emt 0:03:24]} 19. Bf6 {[%emt 0:09:18] aiming for Bxg7.} c4 {[%emt 0:01:30]} 20. Qf4 {[%emt 0:03:02]} ({White should play} 20. Bxg7 $14 Kxg7 21. Bxc4 $1) 20... Bxf6 $11 {[%emt 0:02:55]} 21. Qxf6 {[%emt 0:00:12]} Rf8 {[%emt 0:00:35]} 22. Rad1 {[%emt 0:01:16][%cal Oc3d5]} Bc6 {[%emt 0:05:20] Prevents Nd5.} 23. Qg5 {[%emt 0:04:50]} (23. a4 $5) 23... Qc5 {[%emt 0:07:03]} 24. Nd5 {[%emt 0:11:21]} exd5 $17 {[%emt 0:00:35]} 25. Qxe5 {[%emt 0:00:22][%cal Re4d5]} Rbe8 {[%emt 0:01:06]} 26. Qd4 {[%emt 0:00:13]} Qxd4 {[%emt 0:01:06]} ({Much less strong is} 26... Qxd6 27. Bxc4 Qe5 28. exd5 Qxd4 29. Rxd4 $16) 27. Rxd4 {[%emt 0:00:07][%cal Oe4d5]} Rxe4 {[%emt 0:00:27]} 28. Rxe4 {[%emt 0:00:05]} dxe4 {[%emt 0:00:04]} 29. Bxc4 {[%emt 0:00:04][%mdl 4096] Endgame KRB-KRB} Kg7 {[%emt 0:01:51]} (29... b5 $142 30. Ba2 Kg7) 30. b4 {[%emt 0:03:11]} b5 {[%emt 0:02:18]} 31. Bb3 {[%emt 0:00:22]} (31. Be2 $17 {was worth a try.}) 31... f5 $1 $19 {[%emt 0:00:09]} 32. c4 {[%emt 0:00:44]} (32. Rd1 $142) 32... bxc4 {[%emt 0:00:29]} 33. Bxc4 {[%emt 0:00:05]} Kf6 {[%emt 0:03:42]} 34. b5 {[%emt 0:01:24]} (34. Rd1 $142) 34... Bd7 {[%emt 0:00:17]} 35. a4 {[%emt 0:02:09]} Rc8 {[%emt 0:00:58]} 36. Bd5 {[%emt 0:00:16]} Ke5 {[%emt 0:01:44][%csl LRd5,LRd6]} 37. Rd1 {[%emt 0:00:07]} Rc3 {[%emt 0:00:37] Against Bc6. White must now prevent ...Rd3.} 38. Kg1 {[%emt 0:10:43]} Rd3 {[%emt 0:09:18]} 39. Rxd3 {[%emt 0:00:10]} exd3 {[%emt 0:00:03] KB-KB} 40. Bf3 {[%emt 0:00:54]} g5 {[%emt 0:20:55][%cal Bg6g5,Bg5g4][%mdl 32]} ({Worse is} 40... Kxd6 41. Kf2 $17) 41. Kf2 {[%emt 0:03:26]} g4 {[%emt 0:06:32]} ({And not} 41... Kxd6 42. Ke3 $15) 42. Ba8 {[%emt 0:00:19] [#]} (42. Bd1 f4 43. g3) 42... Kd4 $1 {[%emt 0:01:19] Black is clearly winning.} 43. Bc6 {[%emt 0:00:00]} d2 {[%emt 0:00:00]} 44. Ke2 {[%emt 0:00:00] [#]} Kc3 $1 {[%emt 0:00:00] ( -> ...Bxc6)} 45. Bxd7 {[%emt 0:00:00] KB-KP} Kc2 {[%emt 0:00:00]} 46. Bxf5+ {[%emt 0:00:00]} Kc1 {[%emt 0:00:00]} 47. d7 {[%emt 0:00:00]} d1=Q+ {[%emt 0:00:00]} 48. Kf2 {[%emt 0:00:00]} h5 {[%emt 0:00:00][%cal Bh7h5,Bh5h4][%mdl 32]} 49. h3 {[%emt 0:00:00]} gxh3 {[%emt 0:00:00]} 50. Bxh3 {[%emt 0:00:00]} Qd4+ {[%emt 0:00:00]} 51. Ke2 {[%emt 0:00:00]} h4 {[%emt 0:00:00]} 52. Kf3 {[%emt 0:00:00]} Kd2 {[%emt 0:00:00]} 53. a5 {[%emt 0:00:00]} Qc3+ {[%emt 0:00:00]} 54. Ke4 {[%emt 0:00:00]} Qxa5 {[%emt 0:00:00]} 55. Be6 {[%emt 0:00:00]} Qc7 {[%emt 0:00:00] Threatens to win with ...Kc3.} 56. Kf5 {[%emt 0:00:00]} Kc3 {[%emt 0:00:00] Weighted Error Value: White=0.70/Black=0.34} 0-1

[Event "Chhattisgarh Masters GM 2022"]
[Site "Chhattisgarh"]
[Date "2022.09.21"]
[Round "3.3"]
[White "Jaiswal, Rupesh"]
[Black "Srinath, Rao S.V."]
[Result "*"]
[ECO "B01"]
[WhiteElo "2107"]
[BlackElo "2317"]
[Annotator "TA"]
[PlyCount "44"]
[EventDate "2022.09.19"]
[EventCountry "IND"]
[SourceTitle "playchess.com"]
[Source "ChessBase"]
[SourceQuality "1"]
[TimeControl "5400+30"]

{[%evp 17,44,38,37,24,27,35,43,2,116,54,67,59,68,52,62,41,43,18,64,62,60,45,46,31,29,14,22,2,7]} 1. e4 {[%emt 0:00:47]} d5 {[%emt 0:00:09]} 2. exd5 {[%emt 0:00:16]} Qxd5 {[%emt 0:00:02]} 3. Nc3 {[%emt 0:00:09]} Qa5 {[%emt 0:00:06]} 4. Nf3 {[%emt 0:12:38]} Nf6 {[%emt 0:00:29]} 5. d4 {[%emt 0:06:41]} c6 {[%emt 0:00:34]} 6. Bc4 {[%emt 0:00:37]} Bf5 {[%emt 0:00:09]} 7. Bd2 {[%emt 0:02:31]} Nbd7 {[%emt 0:01:19]} 8. Qe2 {[%emt 0:01:45]} Qc7 {[%emt 0:00:17] 8...Qc7 is better than 8...e6.} 9. O-O-O {[%emt 0:01:42]} e6 {[%emt 0:00:13]} 10. Ne5 {[%emt 0:12:03] B01: Scandinavian Defence.} h5 {[%emt 1:32:12]} 11. h3 {[%emt 0:06:42]} h4 {[%emt 0:04:02] [#]} 12. Rhe1 $146 {[%emt 0:02:38][%cal Oe5f7] White is slightly better.} ({Predecessor:} 12. Bg5 Nb6 13. Bd3 Bxd3 14. Rxd3 Bd6 15. Rhd1 Bb4 16. Rf3 Bxc3 17. bxc3 Qe7 18. Ng4 {½-½ (28) Parikh,V (2394)-Palit,S (2306) Atul 2006}) 12... Nb6 {[%emt 0:04:06] [#]} (12... Nxe5 $1 $11 {remains equal.} 13. dxe5 (13. Qxe5 O-O-O $11) 13... Nd5) 13. Bd3 {[%emt 0:48:31]} (13. d5 $1 $16 {[%cal Rd5e6] Hoping for dxe6.} Nbxd5 14. Nxd5 Nxd5 15. Bxd5 cxd5 16. Qb5+ Ke7 17. Bc3) 13... Bxd3 $14 {[%emt 0:00:50]} 14. Qxd3 {[%emt 0:01:28]} ({But not} 14. cxd3 $6 O-O-O $11) 14... O-O-O {[%emt 0:00:12]} 15. f4 {[%emt 0:01:53] White is more active.} g6 {[%emt 0:03:33]} 16. Ne4 {[%emt 0:01:29]} Nxe4 {[%emt 0:01:19]} 17. Qxe4 {[%emt 0:00:08]} Nd5 {[%emt 0:00:20]} (17... Kb8 $11) 18. c4 {[%emt 0:06:49]} Nf6 {[%emt 0:01:40]} 19. Qe3 {[%emt 0:30:42][%cal Od4d5] d5! is the strong threat.} Kb8 {[%emt 0:02:15]} 20. Bc3 {[%emt 0:05:09][%cal Od4d5] Threatens to win with d5!} Bh6 {[%emt 0:02:55]} 21. d5 {[%emt 0:08:22]} cxd5 {[%emt 0:23:53] [#]} 22. Nxg6 $1 {[%emt 0:05:39]} Nd7 {[%emt 0:01:50] Weighted Error Value: White=0.18 (very precise) /Black=0.18 (very precise)} *

[Event "Chhattisgarh Masters GM 2022"]
[Site "Chhattisgarh"]
[Date "2022.09.21"]
[Round "3.3"]
[White "Kumar, Gaurav"]
[Black "Omidi, Arya"]
[Result "1/2-1/2"]
[ECO "B01"]
[WhiteElo "2073"]
[BlackElo "2309"]
[Annotator "TA"]
[PlyCount "120"]
[EventDate "2022.09.19"]
[EventCountry "IND"]
[SourceTitle "playchess.com"]
[Source "ChessBase"]
[SourceQuality "1"]
[TimeControl "5400+30"]

{[%evp 17,120,22,37,18,25,20,49,12,77,48,49,47,75,36,59,41,34,20,45,56,50,39,44,29,44,26,19,17,13,25,34,8,28,37,43,6,93,64,56,22,22,27,77,76,81,76,105,112,230,162,169,150,157,-8,-11,-8,-8,-39,-8,-36,0,0,0,0,0,0,0,0,0,0,0,0,0,0,0,0,0,0,0,0,0,-8,0,0,0,0,0,0,0,0,0,0,0,0,0,0,0,0,0,0,0,0,0,0,0]} 1. e4 {[%emt 0:00:47]} d5 {[%emt 0:00:09]} 2. exd5 {[%emt 0:00:16]} Qxd5 {[%emt 0:00:02]} 3. Nc3 {[%emt 0:00:09]} Qa5 {[%emt 0:00:06]} 4. Nf3 {[%emt 0:12:38]} Nf6 {[%emt 0:00:29]} 5. d4 {[%emt 0:06:41]} c6 {[%emt 0:00:34]} 6. Bc4 {[%emt 0:00:37]} Bf5 {[%emt 0:00:09]} 7. Bd2 {[%emt 0:02:31]} Nbd7 {[%emt 0:01:19]} 8. Qe2 {[%emt 0:01:45]} Qc7 $1 {[%emt 0:00:17] 8...Qc7 scores better than 8...e6.} 9. O-O-O {[%emt 0:01:42]} e6 {[%emt 0:00:13]} 10. Ne5 {[%emt 0:12:03] B01: Scandinavian Defence.} (10. Nh4 $5 {[%cal Rh4f5]} Bg6 11. d5 (11. Nxg6 hxg6 12. g3 O-O-O $11) 11... cxd5 12. Nxg6 hxg6 13. Nxd5 Nxd5 14. Bxd5 $14) 10... h5 {[%emt 0:14:33]} 11. h3 {[%emt 0:06:42]} h4 {[%emt 0:04:02] [#]} 12. Rhe1 $146 {[%emt 0:02:38][%cal Oe5f7] White is slightly better.} (12. Bg5 $5 {[%cal Re5d7]}) ({Predecessor:} 12. Bg5 Nb6 13. Bd3 Bxd3 14. Rxd3 Bd6 15. Rhd1 Bb4 16. Rf3 Bxc3 17. bxc3 Qe7 18. Ng4 {½-½ (28) Parikh,V (2394)-Palit,S (2306) Atul 2006}) 12... Nb6 {[%emt 0:04:06]} (12... Nxe5 $11 {keeps the balance.} 13. dxe5 (13. Qxe5 O-O-O $11) 13... Nd5) 13. Bd3 {[%emt 0:09:02]} (13. d5 {is interesting.} Nbxd5 14. Nxd5 Nxd5 15. Bxd5 cxd5 16. Qb5+) 13... Bxd3 {[%emt 0:00:50]} 14. Qxd3 {[%emt 0:01:28]} (14. cxd3 O-O-O $11) 14... O-O-O {[%emt 0:00:12]} 15. f4 {[%emt 0:01:53]} g6 {[%emt 0:03:33]} 16. Ne4 {[%emt 0:01:29]} Nxe4 {[%emt 0:01:19]} 17. Qxe4 {[%emt 0:00:08]} Nd5 {[%emt 0:00:20]} 18. c4 {[%emt 0:06:49]} Nf6 {[%emt 0:01:40]} 19. Qe3 {[%emt 0:04:51][%cal Od4d5]} Kb8 {[%emt 0:02:15]} 20. Bc3 {[%emt 0:05:09][%cal Od4d5]} Bh6 {[%emt 0:02:55]} 21. d5 {[%emt 0:08:22]} (21. Kb1 $5 {[%cal Rd4d5]} Bg7 22. Qf2 $14) 21... cxd5 {[%emt 0:23:53] [#]} 22. Nxg6 $1 {[%emt 0:05:39]} Nd7 {[%emt 0:01:50]} 23. Ne5 {[%emt 0:05:34]} (23. Nxh8 $2 Bxf4 24. Nxf7 Bxe3+ 25. Kb1 Rf8 26. cxd5 e5 27. Nxe5 Nxe5 $19) 23... Nb6 {[%emt 0:10:07]} 24. c5 $36 {[%emt 0:01:49][%mdl 2048] White is pushing.} (24. Kb1 $5 {[%cal Rc4c5]}) 24... Na4 {[%emt 0:00:33]} (24... Nc4 $5 {[%cal Rc4e3]} 25. Qf3 (25. Nxc4 Bxf4 26. Be5 Bxe3+ $17) 25... Bg7 $11) 25. Bd4 {[%emt 0:00:15] Kb1 is the strong threat.} f6 {[%emt 0:02:04]} 26. Kb1 $1 {[%emt 0:00:18]} Ka8 {[%emt 0:06:58]} (26... fxe5 $2 27. Bxe5 b6 28. Bxc7+ $18) (26... Qh7+ $11 {remains equal.} 27. Qd3 (27. Nd3 e5 $11) 27... fxe5 28. Bxe5+ Ka8 29. Bxh8 Qxh8) 27. Ng4 {[%emt 0:01:07]} e5 {[%emt 0:01:09]} 28. Nxh6 {[%emt 0:00:18][%cal Rf4e5]} exd4 {[%emt 0:00:11]} 29. Qxd4 {[%emt 0:00:10]} Nxc5 {[%emt 0:01:10]} (29... Nxb2 $11 30. Kxb2 (30. Qxb2 Rxh6 31. Qd4 Rg6 $11) 30... Rxh6) 30. Ng4 $1 $16 {[%emt 0:01:42]} ({But not} 30. Qxf6 Ne4 31. Qd4 (31. Qf7 $2 Qb6 $19) 31... Qxf4 $11) 30... f5 {[%emt 0:11:18]} 31. Nf6 {[%emt 0:00:26] White is more active.} Ne4 {[%emt 0:00:02]} 32. Nxd5 {[%emt 0:00:42]} Qa5 {[%emt 0:00:21]} (32... Qf7 $16) 33. Ka1 {[%emt 0:00:47]} Rhe8 {[%emt 0:00:35] [#]} 34. b4 $1 {[%emt 0:00:26]} Qa4 {[%emt 0:01:41] [#]} 35. Nc3 $2 {[%emt 0:00:29]} (35. Qg7 $1 $16) 35... Rxd4 $11 {[%emt 0:01:33]} 36. Nxa4 {[%emt 0:00:05]} Rxb4 {[%emt 0:00:04]} 37. Nc5 {[%emt 0:00:29]} (37. Nc3 $5 {[%cal Rc3d5]}) 37... a6 {[%emt 0:01:51]} (37... b6 $5 {[%cal Rb6c5]} 38. Nd3 Rc4 $15) 38. Re2 {[%emt 0:01:01]} Rc4 {[%emt 0:00:55]} 39. Rd5 {[%emt 0:00:29] The position is equal.} Rg8 {[%emt 0:02:34]} 40. Nxe4 {[%emt 0:00:20]} Rxe4 {[%emt 0:00:26]} 41. Rxe4 {[%emt 0:00:42]} fxe4 {[%emt 0:00:02][%mdl 4096] Endgame KR-KR} 42. Rd2 {[%emt 0:00:00]} Ka7 {[%emt 0:00:00]} 43. Re2 {[%emt 0:00:00]} Re8 {[%emt 0:00:00]} 44. f5 {[%emt 0:00:00]} Kb6 {[%emt 0:00:00] Threatens to win with ...Kc5.} 45. f6 {[%emt 0:00:00]} e3 {[%emt 0:00:00]} 46. Kb2 {[%emt 0:00:00]} Kc5 {[%emt 0:00:00] Strongly threatening ...Kd4.} 47. f7 {[%emt 0:00:00]} Rf8 {[%emt 0:00:00] White must now prevent ...Kd4.} 48. Rxe3 {[%emt 0:00:00]} Rxf7 {[%emt 0:00:00]} 49. g3 {[%emt 0:00:00]} Rf2+ {[%emt 0:00:00]} 50. Kb3 {[%emt 0:00:00]} Kd4 {[%emt 0:00:00]} 51. Rc3 {[%emt 0:00:00]} Rxa2 {[%emt 0:00:00][%cal Oa2a3] Hoping for ...Ra3+!} 52. Rc4+ {[%emt 0:00:00]} Kd5 {[%emt 0:00:00]} 53. Rxh4 {[%emt 0:00:00]} Rg2 {[%emt 0:00:00]} 54. Rg4 {[%emt 0:00:00]} b5 {[%emt 0:00:00]} 55. h4 {[%emt 0:00:00]} a5 {[%emt 0:00:00]} 56. Rg5+ {[%emt 0:00:00]} Kc6 {[%emt 0:00:19]} 57. Rg6+ {[%emt 0:00:00]} Kc5 {[%emt 0:00:04]} 58. Rg5+ {[%emt 0:00:00]} Kc6 {[%emt 0:00:09]} 59. Rg6+ {[%emt 0:00:00]} Kc5 {[%emt 0:00:06]} 60. Rg5+ {[%emt 0:00:00]} Kc6 {[%emt 0:11:32] Weighted Error Value: White=0.15 (very precise) /Black=0.16 (very precise)} 1/2-1/2

[Event "Chhattisgarh Masters GM 2022"]
[Site "Chhattisgarh"]
[Date "2022.09.21"]
[Round "3.4"]
[White "Mohammad Nubairshah Shaikh"]
[Black "Sharma, Dinesh K."]
[Result "1-0"]
[ECO "A11"]
[WhiteElo "2461"]
[BlackElo "2252"]
[Annotator "TA"]
[PlyCount "57"]
[EventDate "2022.09.19"]
[EventCountry "IND"]
[SourceTitle "playchess.com"]
[Source "ChessBase"]
[SourceQuality "1"]
[TimeControl "5400+30"]

{[%evp 13,57,27,31,15,14,15,16,37,58,50,42,34,44,32,80,59,100,94,96,95,93,84,109,104,103,112,148,119,114,114,121,108,125,118,124,115,177,147,156,135,532,194,547,528,536,513]} 1. Nf3 {[%emt 0:00:16]} d5 {[%emt 0:00:20]} 2. g3 {[%emt 0:00:17]} c6 {[%emt 0:00:33]} 3. Bg2 {[%emt 0:00:20]} Bf5 {[%emt 0:01:56]} 4. O-O {[%emt 0:00:13]} Nf6 {[%emt 0:00:13]} 5. c4 {[%emt 0:03:10]} e6 {[%emt 0:00:25]} 6. d3 {[%emt 0:06:05]} h6 {[%emt 0:00:48]} 7. cxd5 {[%emt 0:02:16]} exd5 {[%emt 0:00:12]} 8. Nd4 {[%emt 0:00:07] 8.Qb3 is setting a new trend. A11: English Opening: 1...c6.} Bh7 {[%emt 0:02:46]} 9. e4 {[%emt 0:02:00]} Bc5 {[%emt 0:06:36]} 10. Nb3 {[%emt 0:00:40] The position is equal.} Be7 {[%emt 0:02:33][%cal Rd5e4]} 11. Nc3 {[%emt 0:30:14]} O-O {[%emt 0:15:36]} 12. Be3 {[%emt 0:01:00]} (12. e5 $5 {[%cal Re5f6]}) 12... Na6 {[%emt 0:05:04] [#]} 13. Rc1 $146 {[%emt 0:09:39]} ({Predecessor:} 13. exd5 Nxd5 14. Nxd5 cxd5 15. Qg4 Bg6 16. a3 Bf6 17. d4 Re8 18. Rac1 Be4 19. Bxh6 {½-½ (32) Kozhuharov,S (2433)-Grachev,B (2610) Plovdiv 2008}) 13... dxe4 {[%emt 0:11:26]} (13... Re8 $14 {is more appropriate.}) 14. dxe4 $16 {[%emt 0:00:12]} Qxd1 {[%emt 0:00:50]} 15. Rfxd1 {[%emt 0:03:20]} Bd8 {[%emt 0:00:53]} 16. f3 {[%emt 0:06:10] White is much more active. The black rooks are badly placed.} Re8 {[%emt 0:06:14]} 17. Na4 {[%emt 0:00:58]} Bc7 {[%emt 0:04:57]} 18. Bf1 {[%emt 0:02:23] Threatens to win with Bxa6.} Nb8 {[%emt 0:11:31]} 19. Bd4 $36 {[%emt 0:01:37][%mdl 2048] White is on the roll.} Nfd7 {[%emt 0:07:50]} 20. Kf2 {[%emt 0:09:01]} b6 {[%emt 0:03:58]} 21. Bh3 Nf8 {[%emt 0:02:48]} 22. Be3 {[%emt 0:05:46]} Ne6 {[%emt 0:07:15]} 23. Nd4 {[%emt 0:01:31]} Nxd4 {[%emt 0:01:25]} 24. Bxd4 {[%emt 0:01:18]} Bd8 {[%emt 0:02:44]} (24... f6 $16 25. Be3 Bg6) 25. Be3 {[%emt 0:04:36]} Bf6 {[%emt 0:02:38]} 26. Rd2 {[%emt 0:02:43]} Rd8 $2 {[%mdl 8192] [#]} (26... g5 $16 {is a better chance.} 27. a3 Bg6) 27. Rxd8+ $18 {[%emt 0:04:32]} Bxd8 {[%emt 0:01:19]} 28. Bc8 {[%emt 0:00:01] Inhibits Na6.} a5 {[%emt 0:01:01]} 29. Rd1 {[%emt 0:00:15] Weighted Error Value: White=0.05 (flawless) /Black=0.41} 1-0